{"text_format":"3","workbook":"xlsx","n_sheets":3,"sheets":["Perunkirja","Kuolinpesän varat","Kuolinpesän velat"],"not_rendered":{"defined_names":1},"read":"whole","date_system":"1900"}

{"sheet":"Perunkirja","index":0,"n_rows":45,"n_cols":35,"rows_kept":45,"merged":[[0,1,0,30],[0,31,0,39],[1,1,5,39],[6,1,6,6],[6,7,6,39],[7,1,7,6],[7,7,7,39],[9,1,9,6],[9,7,9,39],[10,1,10,6],[10,7,10,39],[11,1,11,6],[11,7,11,20],[11,21,11,26],[11,27,11,30],[11,31,11,33],[11,34,11,39],[12,1,12,6],[12,7,12,20],[12,21,12,26],[13,1,13,6],[13,7,13,20],[13,21,13,26],[14,1,14,6],[14,7,14,20],[14,21,14,26],[15,1,15,6],[17,1,17,39],[18,1,18,6],[18,7,18,12],[18,13,18,15],[18,16,18,18],[18,19,18,26],[18,27,18,31],[18,32,18,39],[19,1,19,6],[19,7,19,12],[19,13,19,15],[19,16,19,18],[19,19,19,26],[19,27,19,31],[19,32,19,39],[20,1,20,6],[20,7,20,12],[20,13,20,15],[20,16,20,18],[20,19,20,26],[20,27,20,31],[20,32,20,39],[21,1,21,6],[21,7,21,12],[21,13,21,15],[21,16,21,18],[21,19,21,26],[21,27,21,31],[21,32,21,39],[22,1,22,6],[22,7,22,12],[22,13,22,15],[22,16,22,18],[22,19,22,26],[22,27,22,31],[22,32,22,39],[23,1,23,6],[23,7,23,12],[23,13,23,15],[23,16,23,18],[23,19,23,26],[23,27,23,31],[23,32,23,39],[25,1,25,39],[26,1,26,6],[26,7,26,12],[26,13,26,18],[26,19,26,26],[26,27,26,31],[26,32,26,39],[27,1,27,6],[27,7,27,12],[27,13,27,18],[27,19,27,26],[27,27,27,31],[27,32,27,39],[28,1,28,6],[28,7,28,12],[28,13,28,18],[28,19,28,26],[28,27,28,31],[28,32,28,39],[29,1,29,6],[29,7,29,12],[29,13,29,18],[29,19,29,26],[29,27,29,31],[29,32,29,39],[30,1,30,6],[30,7,30,12],[30,13,30,18],[30,19,30,26],[30,27,30,31],[30,32,30,39],[31,1,31,6],[31,7,31,12],[31,13,31,18],[31,19,31,26],[31,27,31,31],[31,32,31,39],[33,1,33,12],[33,14,33,39],[34,1,34,12],[34,14,34,21],[34,22,34,25],[34,26,34,33],[34,34,34,39],[35,2,35,12],[35,14,35,21],[35,22,35,25],[35,26,35,33],[35,34,35,39],[36,2,36,12],[36,14,36,21],[36,22,36,25],[36,26,36,33],[36,34,36,39],[37,2,37,12],[37,14,37,21],[37,22,37,25],[37,26,37,33],[37,34,37,39],[38,2,38,12],[38,14,38,21],[38,22,38,25],[38,26,38,33],[38,34,38,39],[39,2,39,12],[39,14,39,21],[39,22,39,25],[39,26,39,33],[39,34,39,39],[40,2,40,12],[40,14,40,21],[40,22,40,25],[40,26,40,33],[40,34,40,39],[41,2,41,12],[41,14,41,21],[41,22,41,25],[41,26,41,33],[41,34,41,39],[42,2,42,12],[42,14,42,21],[42,22,42,25],[42,26,42,33],[42,34,42,38],[43,2,43,12],[43,14,43,21],[43,22,43,25],[43,26,43,33],[43,34,43,39],[44,2,44,12],[44,14,44,21],[44,22,44,25],[44,26,44,33],[44,34,44,39]]}
[]
[null,"Perunkirja"]
[]
[]
[]
[]
[null,"Pesänjakajien nimet",{"$nulls":5},"Allan Mattsson"]
[null,"Yhteystiedot",{"$nulls":5},"4567 Main St, Buffalo, NY 98052"]
[]
[null,"Vainajan nimi",{"$nulls":5},"August Bergquist"]
[null,"Katuosoite",{"$nulls":5},"6789 Main St"]
[null,"Paikkakunta",{"$nulls":5},"Buffalo",{"$nulls":13},"Osavaltio",{"$nulls":5},"NY",{"$nulls":3},"Postinumero",null,null,98052]
[null,"Henkilötunnus",{"$nulls":5},"AAA-GG-SSSS",{"$nulls":13},"Ammatti",{"$nulls":5},"Hammaslääkäri"]
[null,"Syntymäaika",{"$nulls":5},"1965-12-08",{"$nulls":13},"Syntymäpaikka",{"$nulls":5},"NY"]
[null,"Kuolinaika",{"$nulls":5},{"$f":"TODAY()-3","v":"2022-05-10"},{"$nulls":13},"Kuolinpaikka",{"$nulls":5},"NY"]
[null,"Lisätiedot"]
[]
[null,"  Puoliso, lapset ja muut perijät"]
[null,"Nimi",{"$nulls":5},"Suhde",{"$nulls":5},"Perijä",null,null,"Ikä",null,null,"Osoite",{"$nulls":7},"Puhelinnumero",{"$nulls":4},"Sähköposti"]
[null,"Mirjam Nilsson",{"$nulls":5},"Henkilökohtainen edustaja",{"$nulls":5},"Ei",null,null,30]
[null,"Victoria Lindqvist",{"$nulls":5},"Puoliso",{"$nulls":5},"Kyllä",null,null,35]
[null,"Alexander Martensson",{"$nulls":5},"Lapsi",{"$nulls":5},"Kyllä",null,null,12]
[]
[]
[]
[null,"Ammattimaiset neuvonantajat"]
[null,"Neuvonantajan tyyppi",{"$nulls":5},"Yhteyshenkilö",{"$nulls":5},"Yritys",{"$nulls":5},"Osoite",{"$nulls":7},"Puhelinnumero",{"$nulls":4},"Sähköposti"]
[null,"Kirjanpitäjä"]
[null,"Asianajaja/notaari"]
[null,"Muu"]
[]
[]
[]
[null,"  Perunkirjoituksen tarkistusluettelo",{"$nulls":12},"  Perunkirjoitus"]
[null,"    Tarkistusluettelon kohteet",{"$nulls":12},"Kuolinpesän varat",{"$nulls":7},"Arvo (€)",{"$nulls":3},"Kuolinpesän velat",{"$nulls":7},"Arvo (€)"]
[null,"✔","Testamentti tai muu asiakirja",{"$nulls":11},{"$f":"'Kuolinpesän varat'!B12","v":"Pankkitilit"},{"$nulls":7},{"$f":"'Kuolinpesän varat'!G20","v":{"v":0,"d":"0.00 €"}},{"$nulls":3},{"$f":"'Kuolinpesän velat'!B11","v":"Asuntolainat"},{"$nulls":7},{"$f":"'Kuolinpesän velat'!G18","v":{"v":0,"d":"0.00 €"}}]
[null,"✔","Tallelokeron vuokraussopimus ja avaimet",{"$nulls":11},{"$f":"'Kuolinpesän varat'!B22","v":"Henkilökohtaiset sijoitukset"},{"$nulls":7},{"$f":"'Kuolinpesän varat'!G30","v":{"v":0,"d":"0.00 €"}},{"$nulls":3},{"$f":"'Kuolinpesän velat'!B21","v":"Henkilökohtaiset lainat ja luotot"},{"$nulls":7},{"$f":"'Kuolinpesän velat'!G28","v":{"v":0,"d":"0.00 €"}}]
[null,"✖","Tietokoneiden ja verkkotilien salasanat",{"$nulls":11},{"$f":"'Kuolinpesän varat'!B32","v":"Liiketoimet"},{"$nulls":7},{"$f":"'Kuolinpesän varat'!G40","v":{"v":0,"d":"0.00 €"}},{"$nulls":3},{"$f":"'Kuolinpesän velat'!B31","v":"Liiketoimet"},{"$nulls":7},{"$f":"'Kuolinpesän velat'!G38","v":{"v":0,"d":"0.00 €"}}]
[null,"✔","Living Trust -sopimukset",{"$nulls":11},{"$f":"'Kuolinpesän varat'!B42","v":"Kiinteistö"},{"$nulls":7},{"$f":"'Kuolinpesän varat'!G50","v":{"v":0,"d":"0.00 €"}},{"$nulls":3},{"$f":"'Kuolinpesän velat'!B41","v":"Luottokortit"},{"$nulls":7},{"$f":"'Kuolinpesän velat'!G48","v":{"v":0,"d":"0.00 €"}}]
[null,"✔","Henki-, terveys- ja tapaturmavakuutussopimukset",{"$nulls":11},{"$f":"'Kuolinpesän varat'!B52","v":"Eläkejärjestelyt"},{"$nulls":7},{"$f":"'Kuolinpesän varat'!G60","v":{"v":0,"d":"0.00 €"}},{"$nulls":3},{"$f":"'Kuolinpesän velat'!B51","v":"Muut velat"},{"$nulls":7},{"$f":"'Kuolinpesän velat'!G58","v":{"v":0,"d":"0.00 €"}}]
[null,"✔","Tilinpäätökset",{"$nulls":11},{"$f":"'Kuolinpesän varat'!B62","v":"Vakuutukset"},{"$nulls":7},{"$f":"'Kuolinpesän varat'!G70","v":{"v":0,"d":"0.00 €"}}]
[null,"✔","Kolmen viime vuoden veroilmoitukset",{"$nulls":11},{"$f":"'Kuolinpesän varat'!B72","v":"Yksityiset lainat ja asuntolainat"},{"$nulls":7},{"$f":"'Kuolinpesän varat'!G80","v":{"v":0,"d":"0.00 €"}}]
[null,"✔","Syntymä- ja kuolintodistukset",{"$nulls":11},{"$f":"'Kuolinpesän varat'!B82","v":"Osallinen muihin varoihin ja sopimuksiin"},{"$nulls":7},{"$f":"'Kuolinpesän varat'!G90","v":{"v":0,"d":"0.00 €"}}]
[null,"✖","Kauppakirjat, asuntolainat ja vuokrasopimukset",{"$nulls":11},{"$f":"'Kuolinpesän varat'!B92","v":"Henkilökohtaiset tavarat ja muut varat"},{"$nulls":7},{"$f":"'Kuolinpesän varat'!G100","v":{"v":0,"d":"0.00 €"}}]
[null,"☐","Maksamattomat laskut ja velkakirjat",{"$nulls":11},"Varat yhteensä",{"$nulls":7},{"$f":"'Kuolinpesän varat'!G10","v":{"v":0,"d":"0.00 €"}},{"$nulls":3},"Velat yhteensä",{"$nulls":7},{"$f":"SUM(AI36:AN44)","v":{"v":0,"d":"0.00 €"}}]

{"sheet":"Kuolinpesän varat","index":1,"n_rows":100,"n_cols":8,"rows_kept":100,"merged":[[0,1,0,7],[1,1,5,7],[6,1,7,7],[11,1,11,7],[12,1,12,7],[21,1,21,7],[22,1,22,7],[31,1,31,7],[32,1,32,7],[41,1,41,7],[42,1,42,7],[51,1,51,7],[52,1,52,7],[61,1,61,7],[62,1,62,7],[71,1,71,7],[72,1,72,7],[81,1,81,7],[82,1,82,7],[91,1,91,7],[92,1,92,7]]}
[]
[null,"Kuolinpesän varat"]
[]
[]
[]
[]
[null,"Tämän laskentataulukon avulla voit luoda perunkirjan. Sinun on määritettävä kuolinpesän varojen markkina-arvot kuolinpäivänä. Selvitä markkina-arvot tarkistamalla kaikki asiakirjat, mukaan lukien tilinpäätökset, vakuutussopimukset ja veroilmoitukset. Sinun on ehkä myös selvitettävä henkilökohtaisten esineiden arvo (kuten taideteokset, kokoelmat, antiikki jne.). Muista lisätä perunkirjaan myös kaikki ulkomaiset varat, kuten kiinteistöt, arvopaperit ja ulkomaiset liiketoimet. Voit pyytää ammattiapua ulkomaisten varojen markkina-arvon selvittämiseen."]
[]
[]
[null,"Varat yhteensä",{"$nulls":4},{"$f":"tblBankAccounts[[#Totals],[Saldo ]]+tblPersonalInvestments[[#Totals],[Markkina-arvo]]+tblBusinessInterests[[#Totals],[Arvo ]]+tblRealEstate[[#Totals],[Markkinahinta]]+tblPensionPlans[[#Totals],[Arvo ]]+tblInsurance[[#Totals],[Käteisarvo ]]+tblMortgages[[#Totals],[Velkasumma ]]+tblTrusts[[#Totals],[Jaettava määrä]]+tblOtherAssets[[#Totals],[Arvo ]]","v":{"v":0,"d":"0.00 €"}}]
[]
[null,"Pankkitilit"]
[null,"Luettele kaikki pankkitilit, mukaan lukien käteinen, matkasekit, maksumääräykset ja käyttötilit, säästötilit, säästökassat jne. Lisää perunkirjaan kaikki tilillä luetellut nimet ja todellinen käteisarvo kuolinhetkellä."]
[null,"Rahoituslaitos ","Osoite","Puhelin","Tilinumero","Tilin tyyppi","Saldo ","Muistiinpanot"]
[]
[]
[]
[]
[]
[null,"Summa",{"$nulls":4},{"$f":"SUBTOTAL(109,tblBankAccounts[[Saldo ]])","v":{"v":0,"d":"0.00 €"}}]
[]
[null,"Henkilökohtaiset sijoitukset"]
[null,"Luettele käteistilit, katetilit, verovapaat säästötilit, rekisteröidyt eläkesäästösopimukset, rekisteröidyt eläkerahastot, lukitut eläkerahastot, lukitut eläkesäästösopimukset, eläkerahastot, määrättyjen eläketulot, rekisteröidyt koulutussäästösuunnitelmat, annuiteetit jne."]
[null,"Yritys","Osoite","Puhelin","Tilinumero","Edunsaaja","Markkina-arvo","Muistiinpanot"]
[]
[]
[]
[]
[]
[null,"Summa",{"$nulls":4},{"$f":"SUBTOTAL(109,tblPersonalInvestments[Markkina-arvo])","v":{"v":0,"d":"0.00 €"}}]
[]
[null,"Liiketoimet"]
[null,"Luettele kaikki liiketoimet, mukaan lukien yksityisyrittäjät, ammatillinen toiminta, yritykset, kumppanuudet, osakeyhtiöt, yhteisyritykset ja muut ei-julkisesti noteeratut yritykset. "]
[null,"Yrityksen nimi","Osoite","Puhelin","Yhteystiedot","Tyyppi","Arvo ","Muistiinpanot"]
[]
[]
[]
[]
[]
[null,"Summa",{"$nulls":4},{"$f":"SUBTOTAL(109,tblBusinessInterests[[Arvo ]])","v":{"v":0,"d":"0.00 €"}}]
[]
[null,"Kiinteistö"]
[null,"Luettele vainajan ja/tai vainajan elossa olevan puolison/kumppanit omistamat ja yhteisomistamat kiinteistöt, mukaan lukien vapaa-ajan kiinteistöt ja lomaosakkeet. Hanki kauppakirjakopiot. Anna kuvaus kiinteistöstä ja sen fyysinen osoite. Luettele kiinteistön käypä markkina-arvo verotoimiston viimeisimmän arvion perusteella."]
[null,"Osoite","Nimi","Puhelin","Yhteystiedot","Ostohinta","Markkinahinta","Muistiinpanot"]
[]
[]
[]
[]
[]
[null,"Summa",{"$nulls":3},{"$f":"SUBTOTAL(109,tblRealEstate[Ostohinta])","v":{"v":0,"d":"0.00 €"}},{"$f":"SUBTOTAL(109,tblRealEstate[Markkinahinta])","v":{"v":0,"d":"0.00 €"}}]
[]
[null,"Eläkejärjestelyt"]
[null,"Luettele määritetyt edut, eläkeoikeuksien ostot tai määritetyt eläkemaksusuunnitelmat, DPSP- tai RRSP-järjestelmät jne."]
[null,"Yritys","Puhelin","Sopimuksen tyyppi","Edunsaaja","Sähköposti","Arvo ","Muistiinpanot"]
[]
[]
[]
[]
[]
[null,"Summa",{"$nulls":4},{"$f":"SUBTOTAL(109,tblPensionPlans[[Arvo ]])","v":{"v":0,"d":"0.00 €"}}]
[]
[null,"Vakuutukset"]
[null,"Lisää perunkirjaan living trust -sopimukset, henkivakuutussopimukset ja nimetyt edunsaajat sekä sijoitustilit, jotka siirrettiin kuolinhetkellä muina kuin kuolinpesän varoina. Jos tuomioistuin tiedustelee näistä varoista, pesänjakajan on helppo viitata muiden kuin kuolinpesän varaluetteloon ja selittää, miksi varat eivät sisälly perunkirjaan."]
[null,"Myöntäjä","Vakuutusnumero","Puhelin","Edunsaaja","Nimellisarvo ","Käteisarvo ","Muistiinpanot"]
[]
[]
[]
[]
[]
[null,"Summa",{"$nulls":3},{"$f":"SUBTOTAL(109,tblInsurance[[Nimellisarvo ]])","v":{"v":0,"d":"0.00 €"}},{"$f":"SUBTOTAL(109,tblInsurance[[Käteisarvo ]])","v":{"v":0,"d":"0.00 €"}}]
[]
[null,"Yksityiset lainat ja asuntolainat"]
[null,"Luettele yksityiset lainat ja asuntolainat, joissa vainaja oli lainanantaja."]
[null,"Lainanottajan nimi","Osoite","Puhelin","Tyyppi","Alkuperäinen summa","Velkasumma ","Muistiinpanot"]
[]
[]
[]
[]
[]
[null,"Summa",{"$nulls":3},{"$f":"SUBTOTAL(109,tblMortgages[Alkuperäinen summa])","v":{"v":0,"d":"0.00 €"}},{"$f":"SUBTOTAL(109,tblMortgages[[Velkasumma ]])","v":{"v":0,"d":"0.00 €"}}]
[]
[null,"Osallinen muihin varoihin ja sopimuksiin"]
[null,"Luettele varat, jotka on rekisteröity muiden puolesta vainajan nimiin (esimerkiksi vainajan hallussa olevat varat edunvalvojan tai asianajajan asemassa)."]
[null,"Varan tai sopimuksen nimi","Pesänjakajan/edunvalvojan nimi","Puhelin","Osoite","Sähköposti","Jaettava määrä","Muistiinpanot"]
[]
[]
[]
[]
[]
[null,"Summa",{"$nulls":4},{"$f":"SUBTOTAL(109,tblTrusts[Jaettava määrä])","v":{"v":0,"d":"0.00 €"}}]
[]
[null,"Henkilökohtaiset tavarat ja muut varat"]
[null,"Luettele esimerkiksi kaikki henkilökohtaiset tavarat, kuten autot, taide-esineet, antiikit ja huonekalut. Lisää perunkirjaan tavarat, joita on saatettu säilyttää tallelokerossa tai kassakaapissa."]
[null,"Tavaran kuvaus","Paikka","Puhelin","Yhteystiedot","Edunsaaja","Arvo ","Muistiinpanot"]
[]
[]
[]
[]
[]
[null,"Summa",{"$nulls":4},{"$f":"SUBTOTAL(109,tblOtherAssets[[Arvo ]])","v":{"v":0,"d":"0.00 €"}}]

{"sheet":"Kuolinpesän velat","index":2,"n_rows":58,"n_cols":8,"rows_kept":58,"merged":[[0,1,0,7],[1,1,5,7],[6,1,6,7],[10,1,10,7],[20,1,20,7],[30,1,30,7],[40,1,40,7],[50,1,50,7]]}
[]
[null,"Kuolinpesän velat"]
[]
[]
[]
[]
[null,"Tähän laskentataulukkoon voit tallentaa kuolinpesän sekä kotimaisten että ulkomaisten velkojen tiedot. Sinun on saatava kunkin velan arvostus kuolinpäivältä."]
[]
[null,"Varat yhteensä",{"$nulls":4},{"$f":"SUM(G18,G28,G38,G48,G58)","v":{"v":0,"d":"0.00 €"}}]
[]
[null,"Asuntolainat"]
[null,"Rahoituslaitos ","Osoite","Puhelin","Nimi","Tilinumero","Saldo ","Muistiinpanot"]
[]
[]
[]
[]
[]
[null,"Yhteensä",{"$nulls":4},{"$f":"SUBTOTAL(109,tblBankAccounts2[[Saldo ]])","v":{"v":0,"d":"0.00 €"}}]
[]
[]
[null,"Henkilökohtaiset lainat ja luotot"]
[null,"Rahoituslaitos","Osoite","Puhelin"," Tilinumero","Tyyppi","Saldo ","Muistiinpanot"]
[]
[]
[]
[]
[]
[null,"Yhteensä",{"$nulls":4},{"$f":"SUBTOTAL(109,tblPersonalInvestments3[[Saldo ]])","v":{"v":0,"d":"0.00 €"}}]
[]
[]
[null,"Liiketoimet"]
[null,"Yrityksen nimi","Osoite"," Puhelin"," Yhteystiedot","Tyyppi","Arvo ","Muistiinpanot"]
[]
[]
[]
[]
[]
[null,"Yhteensä",{"$nulls":4},{"$f":"SUBTOTAL(109,tblBusinessInterests4[[Arvo ]])","v":{"v":0,"d":"0.00 €"}}]
[]
[]
[null,"Luottokortit"]
[null,"Luottokorttiyhtiö","Yrityksen osoite","Puhelin","Kortin numero","Vanhenemispäivä ","Saldo ","Muistiinpanot"]
[]
[]
[]
[]
[]
[null,"Yhteensä",{"$nulls":4},{"$f":"SUBTOTAL(109,tblRealEstate5[[Saldo ]])","v":{"v":0,"d":"0.00 €"}}]
[]
[]
[null,"Muut velat"]
[null,"Tavaran kuvaus","Paikka","Puhelin","Yhteystiedot","Edunsaaja","Arvo ","Muistiinpanot"]
[]
[]
[]
[]
[]
[null,"Yhteensä",{"$nulls":4},{"$f":"SUBTOTAL(109,tblPensionPlans6[[Arvo ]])","v":{"v":0,"d":"0.00 €"}}]